bitfinex/quotes_ETHUSD_20240707
["timestamp","ask_amount","ask_price","bid_price","bid_amount"]
[1720356695439,2.4615,3011.8,3011.2,0.06640772]
[1720356696744,2.4615,3011.8,3011.2,2.39103772]
[1720356697062,2.4615,3011.8,3011.3,0.06640573]
[1720356699451,2.4615,3011.8,3011.2,3.0]
[1720356699678,2.4615,3011.8,3011.1,6.089664]
[1720356699971,2.4615,3011.8,3011.2,2.96615207]
[1720356700270,2.4752,3012.6,3011.3,3.06640579]
[1720356700484,0.04876064,3012.5,3011.3,3.06640579]
[1720356700679,2.4752,3012.4,3011.4,2.32449]
[1720356700867,0.04876064,3012.3,3011.5,0.53908958]
[1720356701076,0.23030671,3012.3,3011.5,3.53908958]
[1720356701262,0.04876064,3012.2,3011.5,3.53908958]
[1720356702283,0.04876064,3012.3,3011.5,3.53908958]
[1720356702586,0.04876064,3012.3,3011.6,0.06640177]
[1720356702756,0.04876064,3012.3,3011.7,0.36054914]
[1720356702947,0.18157695,3012.2,3011.7,0.36054914]
[1720356703152,0.04876064,3012.3,3011.7,0.36054914]
[1720356703753,0.04876064,3012.3,3011.5,3.53908958]
[1720356704108,2.4752,3012.2,3011.3,3.0]
[1720356704260,0.04876064,3012.1,3011.3,3.0]
[1720356704454,0.04876064,3012.1,3011.2,2.32465]
[1720356704455,0.2303237,3012.1,3011.2,5.32465]
[1720356707092,0.18156306,3012.1,3011.3,2.39091547]
[1720356707302,0.18156306,3012.1,3011.4,4.69693]
[1720356707466,0.18156306,3012.1,3011.5,0.84273325]
[1720356707668,0.18156306,3012.1,3011.5,3.84273325]
[1720356708076,0.18156306,3012.1,3011.5,6.16714325]
[1720356709394,0.18156306,3012.1,3011.7,2.32426]
[1720356709595,2.4752,3012.5,3011.8,2.39057585]
[1720356709798,2.52396064,3012.8,3011.9,0.53905758]
[1720356709998,0.1818364,3012.4,3011.9,0.53905758]
[1720356710165,2.4752,3012.8,3012.0,0.06639184]
[1720356710370,0.18195152,3012.7,3012.0,0.06639184]
[1720356710569,0.18195152,3012.7,3012.0,0.89176578]
[1720356712895,0.18195152,3012.7,3012.0,0.82537394]
[1720356713203,0.23071216,3012.7,3012.0,0.82537394]
[1720356713397,0.18195152,3012.7,3012.1,0.06639071]
[1720356714206,0.18195152,3012.7,3012.0,0.82537394]
[1720356714393,0.18195152,3012.7,3012.6,0.2]
[1720356714600,2.4752,3012.8,3012.6,0.2]
[1720356714802,0.18192972,3012.7,3012.6,0.2]
[1720356715008,2.4752,3012.8,3012.6,0.2]
[1720356715505,0.18192972,3012.7,3012.6,0.2]
[1720356715904,2.4752,3012.8,3012.6,0.2]
[1720356716205,0.18192972,3012.7,3012.6,0.2]
[1720356716509,2.4752,3012.8,3012.6,0.2]
[1720356716674,0.18199377,3012.7,3012.6,0.2]
[1720356716878,0.04876064,3013.2,3012.6,0.2]
[1720356717078,0.55713588,3013.2,3012.6,0.2]
[1720356717333,0.18217512,3013.1,3012.6,0.2]
[1720356718376,0.18217512,3013.1,3012.6,0.4]
[1720356719495,0.18217512,3013.1,3012.7,0.06638297]
[1720356719803,0.18217512,3013.1,3012.6,0.4]
[1720356720907,0.4524787,3013.1,3012.6,0.4]
[1720356721091,0.04876064,3013.0,3012.6,0.4]
[1720356721295,0.23093576,3013.1,3012.6,0.4]
[1720356721615,2.4721,3013.3,3012.7,0.06638155]
[1720356721616,0.18189527,3012.9,3012.7,0.06638155]
[1720356721809,0.18188784,3012.8,3012.6,0.46637922]
[1720356722105,2.4721,3013.3,3012.6,3.74854714]
[1720356722609,0.18191755,3013.2,3012.6,3.94854714]
[1720356722804,0.23067819,3013.2,3012.6,3.88216792]
[1720356723006,0.23067819,3013.2,3012.6,3.6]
[1720356723194,0.23067819,3013.2,3012.7,3.0]
[1720356723384,0.23067819,3013.2,3012.6,0.6]
[1720356725780,0.18191755,3013.2,3012.7,0.0663829]
[1720356726281,0.18191755,3013.2,3012.8,0.29899529]
[1720356726477,2.52086064,3013.6,3012.9,0.06637395]
[1720356726784,0.18214905,3013.1,3012.9,0.06637395]
[1720356726979,2.52086064,3013.6,3012.9,0.06637395]
[1720356727392,0.18221391,3013.5,3012.9,0.06637395]
[1720356727583,0.18221391,3013.5,3012.9,0.40291087]
[1720356729218,0.18221391,3013.5,3012.9,0.06637395]
[1720356729513,0.18221391,3013.5,3012.7,0.0663739]
[1720356729716,0.18221391,3013.5,3012.7,3.0663739]
[1720356729878,0.18221391,3013.5,3012.8,0.06637388]
[1720356730284,0.18221391,3013.5,3012.8,2.3234]
[1720356730507,0.18221391,3013.5,3012.9,0.53234]
[1720356730711,0.18221391,3013.5,3012.9,3.53234]
[1720356730883,0.18221391,3013.5,3012.9,3.0]
[1720356731085,0.18221391,3013.5,3013.0,0.06636884]
[1720356731295,0.23097455,3013.5,3012.9,3.0]
[1720356731511,0.23097455,3013.5,3012.7,3.0]
[1720356731512,2.4721,3013.4,3012.7,3.0]
[1720356731813,2.4721,3013.4,3012.8,0.4]
[1720356732116,0.17628262,3013.3,3012.8,0.4]
[1720356732485,0.17628262,3013.3,3012.9,0.06637301]
[1720356732880,0.17628262,3013.3,3012.8,0.4]
[1720356733511,0.17628262,3013.3,3012.6,1.0]
[1720356734019,0.17628262,3013.3,3012.8,2.3553]
[1720356734313,2.4721,3013.8,3012.9,0.06636978]
[1720356734514,0.17627235,3013.2,3012.9,0.06636978]
[1720356734713,2.4721,3013.8,3012.9,2.38969978]
[1720356734879,2.4721,3013.8,3013.0,1.25683598]
[1720356735086,0.17625309,3013.7,3013.0,6.58008598]
[1720356735716,2.4721,3013.8,3013.1,0.06636412]
[1720356736114,0.17631946,3013.7,3013.0,6.58008598]
[1720356736497,2.4721,3013.8,3013.1,0.06636409]
[1720356736700,2.4721,3013.8,3013.2,0.66464501]
[1720356737024,0.17638092,3013.7,3013.3,0.066363]
[1720356737314,0.17638092,3013.7,3013.2,0.66464501]
[1720356737315,2.4721,3013.8,3013.2,0.66464501]
[1720356737697,0.1764223,3013.7,3013.2,0.66464501]
[1720356737897,0.1764223,3013.7,3013.3,0.06636285]
[1720356738102,2.4721,3013.8,3013.3,0.06636285]
[1720356738399,0.1764223,3013.7,3013.3,0.06636285]
[1720356738923,2.4721,3013.8,3013.3,0.06636285]
[1720356739309,0.1764223,3013.7,3013.2,0.66464501]
[1720356739511,0.47239294,3013.7,3012.9,3.0]
[1720356739701,0.04876064,3013.7,3012.7,5.32349]
[1720356740727,2.4721,3013.8,3012.7,5.32349]
[1720356741116,0.17638468,3013.7,3012.7,5.32349]
[1720356741495,2.4721,3013.8,3012.7,5.32349]
[1720356741695,0.17637725,3013.6,3012.8,0.632349]
[1720356742027,0.22514532,3013.7,3012.8,3.632349]
[1720356742198,0.04876064,3013.7,3012.8,3.632349]
[1720356742398,2.4721,3013.8,3012.8,3.632349]
[1720356742620,0.17638468,3013.7,3012.8,3.632349]
[1720356742816,0.17638468,3013.7,3012.9,0.8279289]
[1720356743097,2.4721,3013.8,3013.0,0.55]
[1720356743295,2.4721,3013.8,3013.1,0.06636249]
[1720356743503,0.04876064,3014.3,3013.2,0.55]
[1720356743504,0.17634954,3013.7,3013.2,0.55]
[1720356743843,2.30646064,3014.2,3013.3,2.32303]
[1720356744141,0.17657136,3014.1,3013.4,0.287303]
[1720356744349,0.17657136,3014.1,3013.4,3.287303]
[1720356745055,0.17657136,3014.1,3013.5,0.06635662]
[1720356746044,0.17657136,3014.1,3013.4,3.287303]
[1720356746666,0.17657136,3014.1,3013.5,2.2879]
[1720356746812,0.17657136,3014.1,3013.6,0.5575203]
[1720356747007,0.17657136,3014.1,3013.7,0.0663566]
[1720356748524,0.17657136,3014.1,3014.0,2.32249]
[1720356748841,2.2577,3014.9,3014.1,4.61027]
[1720356749048,2.2577,3014.9,3014.2,1.298276]
[1720356749211,0.04876064,3014.8,3014.2,3.748276]
[1720356749408,2.2577,3014.9,3013.8,2.32264]
[1720356749909,2.2577,3014.9,3013.9,2.32255]
[1720356750111,2.2577,3014.9,3014.2,2.32233]
[1720356750454,2.2577,3014.9,3014.3,0.06633813]
[1720356751272,2.2577,3014.9,3014.1,3.0]
[1720356751446,2.2577,3014.9,3014.2,0.532243]
[1720356751752,2.2577,3014.9,3014.1,3.0]
[1720356751964,2.2577,3014.9,3014.0,2.32243]
[1720356752123,2.2577,3014.9,3014.1,0.55]
[1720356752316,2.2577,3014.9,3014.1,3.55]
[1720356752520,2.2577,3014.9,3014.1,5.87241]
[1720356752719,2.2577,3014.9,3014.2,0.587241]
[1720356753860,2.2577,3014.9,3014.3,0.06633864]
[1720356754021,2.2577,3015.2,3014.3,5.38857864]
[1720356754447,2.5761,3015.4,3014.5,2.32205]
[1720356754627,2.2577,3015.5,3014.6,2.93828644]
[1720356754826,0.15371359,3015.4,3014.7,3.82603364]
[1720356755023,0.15371359,3015.4,3014.8,0.06632696]
[1720356756919,0.15371359,3015.4,3014.7,3.82603364]
[1720356757158,2.3362,3015.3,3014.8,3.0]
[1720356757454,2.3362,3015.1,3014.6,3.0]
[1720356757651,0.20218871,3015.0,3014.2,0.92436894]
[1720356757857,0.04876064,3015.0,3014.2,0.33712794]
[1720356758023,0.04876064,3015.0,3014.1,3.0]
[1720356758218,2.3362,3015.1,3014.1,5.3224]
[1720356758422,2.3362,3015.1,3014.2,2.32227]
[1720356758623,2.3362,3015.4,3014.4,4.76537]
[1720356758858,2.3362,3015.4,3014.5,4.0331704]
[1720356759054,0.20222435,3015.3,3014.5,3.4831704]
[1720356759231,0.04876064,3015.3,3014.5,3.4831704]
[1720356759431,2.3362,3015.2,3014.2,3.0]
[1720356759642,0.20195217,3015.1,3014.1,5.4432]
[1720356759844,0.20195217,3015.1,3014.1,3.0]
[1720356760151,2.3362,3015.0,3013.9,3.0]
[1720356760351,0.04876064,3014.9,3014.0,0.33310814]
[1720356760556,0.20199143,3014.9,3014.0,0.33310814]
[1720356761037,0.04876064,3014.9,3014.0,0.33310814]
[1720356761239,2.3362,3015.0,3014.0,2.65559814]
[1720356761549,2.3362,3015.0,3014.1,3.81555981]
[1720356762761,2.3362,3015.0,3014.1,0.81555981]
[1720356763159,2.3362,3015.0,3014.1,3.25875981]
[1720356763338,2.3362,3015.0,3014.2,3.0]
[1720356763544,2.3362,3015.6,3014.3,0.55]
[1720356763859,2.3362,3015.4,3014.4,0.355]
[1720356764061,2.3362,3015.2,3014.4,0.355]
[1720356764248,0.15321674,3015.1,3014.4,0.355]
[1720356765131,0.15321674,3015.1,3014.5,0.06633229]
[1720356765327,2.3362,3015.2,3014.5,0.06633229]
[1720356765563,2.3362,3015.2,3014.6,0.34213323]
[1720356765780,2.3362,3015.2,3014.7,0.06633222]
[1720356766238,0.04876064,3015.8,3014.7,0.06633222]
[1720356766239,2.3362,3015.7,3014.7,0.06633222]
[1720356766576,2.3362,3015.7,3014.6,3.34213323]
[1720356766577,0.20204776,3015.6,3014.6,3.34213323]
[1720356766875,2.3362,3015.5,3014.7,0.33421332]
[1720356767244,0.04876064,3015.4,3014.4,3.355]
[1720356767549,0.20203293,3015.4,3014.5,0.55]
[1720356769063,0.20203293,3015.4,3015.3,0.2]
[1720356769445,0.15327229,3015.4,3015.3,0.2]
[1720356769847,0.20203293,3015.4,3015.3,0.2]
[1720356770044,0.45585622,3015.4,3015.3,0.2]
[1720356770467,2.79205622,3015.4,3015.3,0.2]
[1720356773167,2.79205622,3015.4,3015.3,0.4]
[1720356775175,2.53823293,3015.4,3015.3,0.4]
[1720356775603,2.48947229,3015.4,3015.3,0.4]
[1720356777201,2.48947229,3015.4,3015.3,0.6]
[1720356778378,0.15327229,3015.4,3015.3,0.6]
[1720356778702,2.42796064,3015.7,3015.3,0.6]
[1720356779003,1.3016356,3015.6,3015.3,0.6]
[1720356779216,0.04876064,3015.5,3015.3,0.6]
[1720356779703,0.15329231,3015.4,3015.3,0.6]
[1720356780507,0.04876064,3015.6,3015.3,0.6]
[1720356780806,0.15327436,3015.4,3015.3,0.6]
[1720356781302,0.202035,3015.4,3015.3,0.6]
[1720356781681,0.15327436,3015.4,3015.3,0.6]
[1720356783013,2.5761,3015.9,3015.3,0.6]
[1720356783478,0.15346836,3015.8,3015.4,0.06632209]
[1720356783884,0.15346836,3015.8,3015.4,2.39722209]
[1720356784090,0.15346836,3015.8,3015.4,5.39722209]
[1720356784284,0.15346836,3015.8,3015.5,0.59972221]
[1720356784500,0.15346836,3015.8,3015.5,3.59972221]
[1720356785389,0.15346836,3015.8,3015.5,3.66603911]
[1720356785626,0.04876064,3016.2,3015.5,3.66603911]
[1720356785913,0.04876064,3016.3,3015.5,3.66603911]
[1720356786115,0.15349996,3016.2,3015.6,0.59969391]
[1720356787313,0.15349996,3016.2,3015.6,0.66600839]
[1720356787884,0.04876064,3016.6,3015.6,0.66600839]
[1720356788085,2.53282209,3016.5,3015.5,3.0]
[1720356788311,2.3792,3016.3,3015.3,0.6]
[1720356788494,0.20250188,3016.2,3015.3,0.6]
[1720356789392,3.501,3016.1,3015.3,0.6]
[1720356789718,2.3792,3015.6,3015.3,0.6]
[1720356789918,5.8802,3015.4,3015.3,0.6]
[1720356790308,6.03386332,3015.4,3015.3,0.6]
[1720356790998,5.8802,3015.1,3013.5,6.17478483]
[1720356791198,0.63678064,3015.0,3013.6,0.61747848]
[1720356791393,0.79017374,3015.0,3013.4,2.32293]
[1720356792343,0.79017374,3015.0,3013.3,2.66034823]
[1720356792491,2.3792,3014.9,3013.4,3.0]
[1720356792682,0.20190439,3014.8,3013.3,5.3309]
[1720356792987,0.04876064,3014.7,3013.3,5.3309]
[1720356793193,0.30687108,3014.7,3013.4,0.80019188]
[1720356793495,0.15312891,3014.6,3013.4,3.80019188]
[1720356793800,0.04876064,3014.5,3013.4,3.80019188]
[1720356794306,0.15284523,3014.4,3013.5,0.06635836]
[1720356794506,2.3792,3014.9,3013.6,0.38665502]
[1720356794507,0.04876064,3014.8,3013.6,0.38665502]
[1720356794819,0.15284017,3014.7,3013.7,0.06634803]
[1720356795240,0.15284017,3014.7,3013.7,3.06634803]
[1720356795583,0.15284017,3014.7,3013.7,5.38905803]
[1720356795797,0.15284017,3014.7,3013.8,3.68248531]
[1720356796122,2.42796064,3014.9,3013.9,3.0]
[1720356796428,0.15285565,3014.6,3013.9,3.0]
[1720356796613,0.15287049,3014.8,3013.9,3.0]
[1720356796920,0.04876064,3015.1,3014.0,2.97284853]
[1720356797091,0.15278893,3014.7,3014.1,3.06634146]
[1720356797297,0.04876064,3015.1,3014.1,3.06634146]
[1720356797538,0.15289703,3015.0,3014.2,0.603919]
[1720356797842,0.15289703,3015.0,3014.3,2.38854142]
[1720356798119,0.04876064,3015.5,3014.4,2.87212]
[1720356798320,2.5761,3015.6,3014.7,2.32193]
[1720356798321,0.15295828,3014.9,3014.7,2.32193]
[1720356798530,2.62486064,3016.0,3014.8,0.06632446]
[1720356798693,1.73146606,3015.9,3014.9,0.23882545]
[1720356798896,0.04876064,3015.8,3015.0,0.06632428]
[1720356799104,0.04876064,3016.0,3015.0,0.06632428]
[1720356799425,2.2798,3016.1,3015.0,0.06632428]
[1720356799610,0.04876064,3016.0,3015.0,0.06632428]
[1720356799926,0.04876064,3016.0,3015.1,0.33051497]
[1720356804042,0.15326457,3015.9,3015.1,0.33051497]
[1720356804245,0.04876064,3015.8,3015.0,3.0]
[1720356804409,0.04876064,3015.8,3014.5,5.32204]
[1720356804614,0.15324975,3015.7,3014.6,0.55]
[1720356804816,0.04876064,3015.6,3014.6,0.55]
[1720356805224,0.04876064,3016.0,3014.6,0.55]
[1720356805438,0.23285606,3015.9,3014.7,0.587204]
[1720356805598,0.04876064,3015.8,3014.7,0.587204]
[1720356806008,0.15324975,3015.7,3014.7,0.587204]
[1720356806211,0.04876064,3015.6,3014.7,0.587204]
[1720356806626,0.15323491,3015.5,3014.7,0.587204]
[1720356809961,2.50116064,3015.4,3014.7,0.587204]
[1720356810463,0.15318032,3015.3,3014.7,0.587204]
[1720356810599,0.15318032,3015.3,3014.5,0.33982389]
[1720356810805,0.15318032,3015.3,3014.3,3.0]
[1720356811033,0.15318032,3015.3,3014.2,3.2741778]
[1720356811260,2.50116064,3015.4,3014.3,3.55]
[1720356811457,2.50116064,3015.4,3014.3,0.55]
[1720356811600,0.40328272,3015.3,3014.3,0.55]
[1720356811804,0.04876064,3015.2,3014.3,0.55]
[1720356813046,0.04876064,3015.2,3014.2,0.603919]
[1720356813227,0.04876064,3015.2,3014.0,0.32901733]
[1720356813444,0.15312014,3015.1,3013.9,5.32255]
[1720356813608,0.04876064,3015.0,3013.9,5.32255]
[1720356814112,0.1531053,3014.9,3013.9,5.32255]
[1720356814437,0.04876064,3015.0,3013.9,3.0]
[1720356814634,2.4524,3014.9,3013.8,3.0]
[1720356814839,0.04876064,3014.8,3013.8,0.33965985]
[1720356815004,0.04876064,3014.8,3013.7,3.0]
[1720356815200,0.15315626,3014.7,3013.7,3.0]
[1720356815634,0.04876064,3014.8,3013.7,3.0]
[1720356815836,0.04876064,3014.6,3013.4,2.32292]
[1720356816037,0.04876064,3014.6,3013.4,4.64583]
[1720356816236,0.15308422,3014.5,3013.5,2.32287]
[1720356817411,0.15308422,3014.5,3013.5,5.32287]
[1720356818940,0.15308422,3014.5,3013.5,3.0]
[1720356819140,0.15308422,3014.5,3013.4,5.64944836]
[1720356819341,0.15308422,3014.5,3013.5,1.37762672]
[1720356819842,0.15308422,3014.5,3014.4,0.2]
[1720356820213,2.58788422,3014.5,3014.4,0.2]
[1720356823830,2.58788422,3014.5,3014.4,0.4]
[1720356824415,0.15308422,3014.5,3014.4,0.4]
[1720356824948,0.1456209,3014.5,3014.4,0.4]
[1720356825353,0.04876064,3014.8,3014.4,0.4]
[1720356825524,0.1456209,3014.5,3014.4,0.4]
[1720356825722,0.04876064,3014.8,3014.4,0.4]
[1720356826016,2.4348,3014.9,3014.5,0.06634704]
[1720356826017,0.14563574,3014.7,3014.5,0.06634704]
[1720356826239,0.14563574,3014.7,3014.5,0.06633905]
[1720356826442,2.4348,3015.2,3014.5,0.06633905]
[1720356826915,0.14571326,3015.1,3014.5,0.06633905]
[1720356827147,2.4348,3015.2,3014.6,0.3466339]
[1720356827330,2.4348,3015.2,3014.5,0.06633905]
[1720356827530,0.14572887,3015.1,3014.5,0.06633905]
[1720356828065,2.4348,3015.2,3014.5,0.06633905]
[1720356828551,0.14573862,3015.1,3014.5,0.06633905]
[1720356828946,2.4348,3015.2,3014.5,0.06633905]
[1720356829256,2.4348,3015.2,3014.6,0.3466339]
[1720356829425,0.14574057,3015.1,3014.6,0.3466339]
[1720356829952,2.4348,3015.2,3014.6,0.3466339]
[1720356830456,0.14574057,3015.1,3014.6,0.3466339]
[1720356830954,2.4348,3015.2,3014.6,0.3466339]
[1720356831456,0.14572692,3015.1,3014.7,0.06633585]
[1720356831655,0.14572692,3015.1,3014.6,0.3466339]
[1720356831883,0.04876064,3015.5,3014.6,0.3466339]
[1720356832379,0.1458321,3015.4,3014.6,0.3466339]
[1720356833485,0.1458321,3015.4,3014.7,0.26687239]
[1720356835483,0.1458321,3015.4,3014.7,0.33320388]
[1720356835786,0.1458321,3015.4,3014.8,0.0663315]
[1720356837280,2.4348,3015.6,3014.8,0.0663315]
[1720356837455,0.14508777,3015.3,3014.8,0.0663315]
[1720356837650,0.04876064,3015.7,3014.8,0.66651628]
[1720356837855,0.14515185,3015.2,3014.8,0.66651628]
[1720356838169,0.04876064,3015.7,3014.8,0.66651628]
[1720356838373,0.04876064,3015.7,3014.8,0.60018478]
[1720356838685,2.45211981,3015.6,3014.7,0.26687239]
[1720356839258,0.04876064,3015.5,3014.7,0.26687239]
[1720356839574,0.14544215,3015.4,3014.8,0.06632977]
[1720356840385,0.14544215,3015.4,3014.7,0.26687239]
[1720356841187,0.04876064,3015.3,3014.7,3.0]
[1720356841388,0.04876064,3015.3,3014.5,3.0]
[1720356841687,0.14546071,3015.2,3014.4,0.4]
[1720356843071,0.14546071,3015.2,3014.5,0.06633746]
[1720356843656,0.14546071,3015.2,3014.5,2.2928]
[1720356843962,0.04876064,3015.5,3014.6,0.26928]
[1720356844163,0.14545329,3015.1,3014.5,5.2928]
[1720356844380,0.04876064,3015.5,3014.5,3.0]
[1720356844580,0.04876064,3015.5,3014.4,0.4]
[1720356844784,0.3810216,3015.4,3014.4,0.4]
[1720356844989,0.04876064,3015.3,3014.4,0.4]
[1720356845366,2.45216071,3015.2,3014.4,0.4]
[1720356845564,0.04876064,3015.1,3014.4,0.4]
[1720356845992,0.14533024,3015.0,3014.4,0.4]
[1720356846178,0.39540933,3015.0,3014.4,0.4]
[1720356849281,0.14533024,3015.0,3014.4,0.4]
[1720356849493,0.14533024,3015.0,3014.5,0.06633913]
[1720356849817,2.3067,3015.2,3014.5,0.06633913]
[1720356850091,0.14526953,3014.9,3014.5,0.06633913]
[1720356850291,2.3067,3015.2,3014.5,0.06633913]
[1720356850464,0.14526211,3014.8,3014.5,0.06633913]
[1720356850666,2.3067,3015.2,3014.5,0.06633913]
[1720356850862,0.14525469,3014.7,3014.5,0.06633913]
[1720356851063,2.3067,3015.2,3014.5,0.06633913]
[1720356851317,0.14523947,3014.6,3014.5,0.64519904]
[1720356851475,2.3067,3015.2,3014.5,0.64519904]
[1720356851675,0.14523947,3014.6,3014.5,0.64519904]
[1720356851887,0.14528809,3014.6,3014.5,0.64519904]
[1720356852075,0.14036093,3014.6,3014.5,2.93799904]
[1720356852274,2.3067,3015.5,3014.5,8.81009904]
[1720356852532,2.3067,3015.5,3014.6,1.1532279]
[1720356852823,0.14047553,3015.4,3014.7,0.06632974]
[1720356854270,0.14047553,3015.4,3014.9,0.2]
[1720356854479,2.3067,3015.5,3014.9,0.2]
[1720356854685,0.14038431,3015.4,3015.0,0.06632843]
[1720356854885,0.14038431,3015.4,3015.0,0.25881984]
[1720356855080,2.62486064,3015.8,3015.0,0.25881984]
[1720356855321,2.62486064,3015.8,3015.1,0.06632476]
[1720356855522,0.14047047,3015.7,3015.1,0.06632476]
[1720356855819,0.14047047,3015.7,3015.1,0.41883922]
[1720356856116,0.14047047,3015.7,3015.1,0.35251446]
[1720356858023,0.14047047,3015.7,3015.1,0.41883918]
[1720356858520,0.18923111,3015.7,3015.1,0.35251446]
[1720356858719,0.18923111,3015.7,3014.9,0.4]
[1720356859894,2.4707,3015.6,3014.9,0.4]
[1720356860224,0.18568884,3015.5,3014.9,0.4]
[1720356862626,0.18568884,3015.5,3014.9,0.6]
[1720356863211,2.4707,3015.4,3014.9,0.6]
[1720356863412,0.31439952,3015.3,3014.9,0.6]
[1720356863619,0.04876064,3015.2,3014.9,0.6]
[1720356863998,0.1368728,3015.1,3014.9,0.6]
[1720356865024,0.31439952,3015.3,3014.9,0.6]
[1720356865228,0.1368854,3015.0,3014.9,0.6]
[1720356865437,0.04876064,3015.3,3014.9,0.6]
[1720356865727,0.13691271,3015.0,3014.9,0.6]
[1720356866037,0.1856419,3015.0,3014.9,0.6]
[1720356866419,5.9442419,3015.0,3014.9,0.6]
[1720356866618,7.09293939,3015.0,3014.9,0.6]
[1720356866806,7.80223333,3015.0,3014.9,0.6]
[1720356868809,7.80228562,3015.0,3014.9,0.6]
[1720356869004,10.12400562,3015.0,3014.9,0.6]
[1720356870809,10.12400562,3015.0,3013.1,2.3386]
[1720356870810,3.501,3014.5,3013.1,2.3386]
[1720356871013,5.7586,3014.3,3013.1,2.3386]
[1720356871263,0.04876064,3014.2,3013.1,2.3386]
[1720356871553,0.18511204,3014.2,3013.1,2.3386]
[1720356871713,0.5943712,3014.1,3013.1,2.3386]
[1720356871926,0.18493253,3014.0,3013.1,2.3386]
[1720356873615,0.18493253,3014.0,3013.0,3.0]
[1720356873857,2.2576,3013.9,3012.7,2.3386]
[1720356874151,0.18478687,3013.8,3012.7,2.3386]
[1720356874357,0.29299933,3013.7,3012.7,2.3386]
[1720356874516,0.29299933,3013.7,3012.4,2.3386]
[1720356874722,3.501,3013.5,3012.4,2.3386]
[1720356874923,0.04876064,3013.4,3012.4,2.3386]
[1720356875122,0.13585067,3013.3,3012.0,2.3386]
[1720356875323,0.04876064,3013.2,3012.1,0.466269]
[1720356875546,0.13580738,3013.1,3012.1,0.466269]
[1720356875723,0.04876064,3013.0,3012.1,0.466269]
[1720356875928,0.13563487,3012.9,3012.1,0.466269]
[1720356876129,0.04876064,3012.8,3012.1,0.466269]
[1720356876456,0.13545009,3012.7,3012.2,0.2804869]
[1720356876824,0.04876064,3013.2,3012.2,0.2804869]
[1720356877060,0.13541402,3012.6,3012.2,0.2804869]
[1720356877364,0.04876064,3013.2,3012.2,0.2804869]
[1720356877365,2.62486064,3013.2,3012.2,0.2804869]
[1720356877564,0.13544829,3013.1,3012.2,0.2804869]
[1720356877769,0.04876064,3013.0,3012.2,0.2804869]
[1720356877979,0.18417287,3013.0,3012.2,0.2804869]
[1720356879954,0.18417287,3013.0,3012.3,0.32804869]
[1720356880157,0.13541223,3013.0,3012.4,2.3917]
[1720356880354,0.13541223,3013.0,3012.4,5.3917]
[1720356881264,0.13541223,3013.0,3012.5,0.06638261]
[1720356881469,0.04876064,3013.5,3012.6,0.54580826]
[1720356881683,0.13538475,3012.9,3012.6,0.54580826]
[1720356881886,0.04876064,3013.5,3012.6,0.54580826]
[1720356882060,0.13537732,3012.8,3012.6,0.54580826]
[1720356882393,0.04876064,3013.5,3012.6,0.54580826]
[1720356882693,0.1353699,3012.7,3012.6,0.54580826]
[1720356882894,0.04876064,3013.5,3012.6,0.54580826]
[1720356883264,0.13542187,3013.4,3012.7,0.06637846]
[1720356883462,0.13542187,3013.4,3012.6,0.54580826]
[1720356884296,0.13542187,3013.4,3012.7,0.0663765]
[1720356885494,0.13542187,3013.4,3012.6,0.54580826]
[1720356885685,0.13542187,3013.4,3012.7,0.35458083]
[1720356885886,0.04876064,3013.9,3012.7,0.35458083]
[1720356886089,0.13556335,3013.3,3012.7,0.35458083]
[1720356886276,0.04876064,3013.9,3012.7,0.35458083]
[1720356886479,0.13555592,3013.2,3012.6,0.54580826]
[1720356886677,2.3253,3013.8,3012.6,0.54580826]
[1720356886993,0.04876064,3013.7,3012.5,3.0]
[1720356887190,0.04876064,3013.7,3012.4,5.3917]
[1720356887191,0.18435368,3013.7,3012.4,5.3917]
[1720356888194,0.18435368,3013.7,3012.4,7.71541]
[1720356889015,0.18435368,3013.7,3012.4,10.03907]
[1720356889217,0.18435368,3013.7,3012.5,1.13577045]
[1720356889390,0.18435368,3013.7,3012.6,2.87352]
[1720356889590,0.18435368,3013.7,3012.7,3.0]
[1720356890194,0.18435368,3013.7,3012.8,0.06637051]
[1720356890610,0.04876064,3013.7,3012.8,0.06637051]
[1720356890784,0.04876064,3013.7,3012.9,0.53898605]
[1720356892494,0.04876064,3013.7,3013.0,0.06637066]
[1720356893214,0.04876064,3013.7,3012.9,0.53898605]
[1720356896026,0.04876064,3013.7,3012.7,0.33329337]
[1720356896328,0.04876064,3013.7,3012.7,2.32349]
[1720356896498,0.04876064,3013.7,3012.7,5.32349]
[1720356898102,0.04876064,3013.7,3012.7,3.0]
[1720356898317,0.04876064,3013.7,3012.6,3.55]
[1720356898517,0.2861667,3013.7,3012.6,1.25110938]
[1720356898999,0.2861667,3013.7,3012.6,1.59197398]
[1720356899196,2.263,3013.6,3012.6,4.04197398]
[1720356899398,0.04876064,3013.5,3012.6,3.3408646]
[1720356899600,0.18423009,3013.5,3012.7,3.0]
[1720356899833,0.18423009,3013.5,3012.5,3.0]
[1720356900010,0.04876064,3013.5,3012.4,5.3917]
[1720356900332,0.2799367,3013.5,3012.5,0.80435487]
[1720356900519,0.2799367,3013.5,3012.5,3.80435487]
[1720356900721,2.263,3013.4,3012.0,4.73133]
[1720356900910,2.263,3013.2,3011.7,5.07020564]
[1720356901230,2.44700569,3013.1,3011.7,4.73151]
[1720356901427,2.44700569,3013.1,3011.7,7.05572]
[1720356901630,0.24470057,3013.0,3011.8,0.705572]
[1720356901934,2.263,3012.8,3011.3,4.73181]
[1720356902125,0.04876064,3012.7,3011.3,4.73181]
[1720356902324,0.18404242,3012.7,3011.3,4.73181]
[1720356902524,0.18404242,3012.7,3011.4,2.32449]
[1720356903002,0.04876064,3012.7,3011.7,2.32426]
[1720356903203,0.04876064,3012.7,3011.8,0.232426]
[1720356903434,0.04876064,3012.7,3011.7,3.0]
[1720356903637,0.04876064,3012.7,3011.4,5.32447]
[1720356903832,2.263,3012.6,3011.5,0.55]
[1720356904035,0.04876064,3012.5,3011.5,0.55]
[1720356904332,0.2799367,3012.5,3011.5,1.378177]
[1720356904534,0.04876064,3012.5,3011.6,0.0663979]
[1720356904833,0.13505617,3012.4,3011.6,3.0663979]
[1720356907440,0.13505617,3012.4,3011.7,2.32423]
[1720356907737,2.263,3012.6,3011.8,0.06639204]